[Event "Early-Titled-Tuesday-Blitz-November-28-2023"]
[Site "Chess.com"]
[Date "2023.11.28"]
[Round "3"]
[White "chess_blitz00"]
[Black "Lion-Al-Messi"]
[Result "1/2-1/2"]
[WhiteElo "2505"]
[BlackElo "2652"]
[TimeControl "180+1"]
[EndTime "8:30:47 PST"]
[Termination "Game drawn - insufficient material"]

1. d4 {[%clk 0:03:00.9]} 1... Nf6 {[%clk 0:02:59]} 2. Nf3 {[%clk 0:02:58.6]}
2... b6 {[%clk 0:02:57.4]} 3. g3 {[%clk 0:02:55.6]} 3... Bb7 {[%clk 0:02:57.5]}
4. Bg2 {[%clk 0:02:56.2]} 4... e6 {[%clk 0:02:55.4]} 5. O-O {[%clk 0:02:56.1]}
5... Be7 {[%clk 0:02:55.1]} 6. Nbd2 {[%clk 0:02:56.2]} 6... c5 {[%clk
0:02:54.4]} 7. c3 {[%clk 0:02:53.4]} 7... O-O {[%clk 0:02:54.3]} 8. Re1 {[%clk
0:02:52.3]} 8... Ne4 {[%clk 0:02:53.8]} 9. Ng5 {[%clk 0:02:45.9]} 9... Nxf2
{[%clk 0:02:15.5]} 10. Qc2 {[%clk 0:02:14.7]} 10... Bxg5 {[%clk 0:02:15.2]} 11.
Bxb7 {[%clk 0:02:12]} 11... Ng4 {[%clk 0:02:15]} 12. Nf3 {[%clk 0:02:02.8]}
12... Bxc1 {[%clk 0:02:04.7]} 13. Qxc1 {[%clk 0:01:56.8]} 13... Nc6 {[%clk
0:02:03.5]} 14. Bxa8 {[%clk 0:01:55.9]} 14... Qxa8 {[%clk 0:02:03.6]} 15. dxc5
{[%clk 0:01:54.9]} 15... bxc5 {[%clk 0:02:03.4]} 16. Qg5 {[%clk 0:01:53.8]}
16... f5 {[%clk 0:02:01.5]} 17. Rad1 {[%clk 0:01:49.7]} 17... h6 {[%clk
0:01:58.3]} 18. Qc1 {[%clk 0:01:45.9]} 18... d5 {[%clk 0:01:56.5]} 19. e3 {[%clk
0:01:41.4]} 19... Nf6 {[%clk 0:01:53.6]} 20. c4 {[%clk 0:01:38.4]} 20... Nb4
{[%clk 0:01:53.7]} 21. cxd5 {[%clk 0:01:35.9]} 21... Nfxd5 {[%clk 0:01:50.6]}
22. Qxc5 {[%clk 0:01:34.1]} 22... Nxa2 {[%clk 0:01:45.8]} 23. Qd6 {[%clk
0:01:19.7]} 23... Re8 {[%clk 0:01:42.1]} 24. e4 {[%clk 0:01:17.6]} 24... Ndb4
{[%clk 0:01:35.9]} 25. Ne5 {[%clk 0:01:07.4]} 25... Qb7 {[%clk 0:01:18.3]} 26.
Qd7 {[%clk 0:00:43.9]} 26... Qxd7 {[%clk 0:01:14.4]} 27. Rxd7 {[%clk 0:00:44.8]}
27... a5 {[%clk 0:01:05.3]} 28. exf5 {[%clk 0:00:38.5]} 28... exf5 {[%clk
0:01:05.1]} 29. Nf3 {[%clk 0:00:33.6]} 29... Re4 {[%clk 0:00:58.9]} 30. Rxe4
{[%clk 0:00:30.8]} 30... fxe4 {[%clk 0:00:59.8]} 31. Nd2 {[%clk 0:00:30.7]}
31... e3 {[%clk 0:00:58.8]} 32. Nc4 {[%clk 0:00:26.6]} 32... e2 {[%clk
0:00:57.9]} 33. Kf2 {[%clk 0:00:26.8]} 33... Nc1 {[%clk 0:00:58.5]} 34. Ne5
{[%clk 0:00:14.2]} 34... Kf8 {[%clk 0:00:23.1]} 35. Rc7 {[%clk 0:00:14.5]} 35...
Nb3 {[%clk 0:00:16.7]} 36. Kxe2 {[%clk 0:00:13.3]} 36... Nd4+ {[%clk 0:00:17.4]}
37. Kf2 {[%clk 0:00:13]} 37... g5 {[%clk 0:00:10]} 38. Ng6+ {[%clk 0:00:13.2]}
38... Ke8 {[%clk 0:00:09.1]} 39. Re7+ {[%clk 0:00:13.1]} 39... Kd8 {[%clk
0:00:09.2]} 40. Rh7 {[%clk 0:00:13.7]} 40... Nf5 {[%clk 0:00:09.1]} 41. g4
{[%clk 0:00:13.9]} 41... Nd6 {[%clk 0:00:09]} 42. Rxh6 {[%clk 0:00:13.9]} 42...
Ne4+ {[%clk 0:00:09.3]} 43. Ke3 {[%clk 0:00:14.1]} 43... Nf6 {[%clk 0:00:09]}
44. Ne5 {[%clk 0:00:12.6]} 44... Ke7 {[%clk 0:00:06.3]} 45. h3 {[%clk
0:00:11.5]} 45... Ke6 {[%clk 0:00:06.1]} 46. Nd3 {[%clk 0:00:11.5]} 46... Nd5+
{[%clk 0:00:05.6]} 47. Kd4 {[%clk 0:00:10.9]} 47... Kf7 {[%clk 0:00:06.2]} 48.
Ne5+ {[%clk 0:00:09]} 48... Kg7 {[%clk 0:00:04.8]} 49. Rg6+ {[%clk 0:00:09.3]}
49... Kh7 {[%clk 0:00:05.2]} 50. Rxg5 {[%clk 0:00:09.8]} 50... Nf4 {[%clk
0:00:05.8]} 51. Rf5 {[%clk 0:00:09.8]} 51... Ne6+ {[%clk 0:00:05.1]} 52. Kc4
{[%clk 0:00:09.2]} 52... Ne4 {[%clk 0:00:05.3]} 53. Nf3 {[%clk 0:00:07.9]} 53...
Nd6+ {[%clk 0:00:04.4]} 54. Kd5 {[%clk 0:00:07.8]} 54... Nxf5 {[%clk 0:00:03.5]}
55. Kxe6 {[%clk 0:00:07.6]} 55... Ne3 {[%clk 0:00:03.6]} 56. h4 {[%clk
0:00:06.9]} 56... a4 {[%clk 0:00:04.2]} 57. g5 {[%clk 0:00:05.4]} 57... Nc4
{[%clk 0:00:04.4]} 58. Kf7 {[%clk 0:00:04.7]} 58... Nd6+ {[%clk 0:00:03.9]} 59.
Kf6 {[%clk 0:00:01.1]} 59... Nc4 {[%clk 0:00:04.8]} 60. Kf7 {[%clk 0:00:01.4]}
60... Ne5+ {[%clk 0:00:04.7]} 61. Ke6 {[%clk 0:00:02.3]} 61... Nxf3 {[%clk
0:00:04.7]} 62. h5 {[%clk 0:00:02.9]} 62... Nxg5+ {[%clk 0:00:03.6]} 63. Kd5
{[%clk 0:00:03.8]} 63... Nf3 {[%clk 0:00:03.7]} 64. Kc4 {[%clk 0:00:04.4]} 64...
Ne5+ {[%clk 0:00:03.4]} 65. Kb4 {[%clk 0:00:04.9]} 65... Nd3+ {[%clk 0:00:03.8]}
66. Kxa4 {[%clk 0:00:05.4]} 66... Nxb2+ {[%clk 0:00:04.3]} 67. Kb3 {[%clk
0:00:06.2]} 67... Nd3 {[%clk 0:00:05.1]} 68. h6 {[%clk 0:00:07.1]} 68... Nf4
{[%clk 0:00:05.9]} 69. Kc4 {[%clk 0:00:06.6]} 69... Ng6 {[%clk 0:00:06.5]} 70.
Kd4 {[%clk 0:00:07.5]} 70... Nf8 {[%clk 0:00:06.7]} 71. Ke4 {[%clk 0:00:08.3]}
71... Nd7 {[%clk 0:00:07]} 72. Ke3 {[%clk 0:00:09.2]} 72... Nf6 {[%clk
0:00:07.3]} 73. Kf2 {[%clk 0:00:10.1]} 73... Nh5 {[%clk 0:00:07.6]} 74. Kg2
{[%clk 0:00:11]} 74... Nf4+ {[%clk 0:00:07.8]} 75. Kh2 {[%clk 0:00:11.9]} 75...
Kg6 {[%clk 0:00:07.8]} 76. Kh1 {[%clk 0:00:12.8]} 76... Nh5 {[%clk 0:00:08.1]}
77. Kg1 {[%clk 0:00:13.7]} 77... Nf6 {[%clk 0:00:08.6]} 78. Kf1 {[%clk
0:00:14.6]} 78... Nh7 {[%clk 0:00:09.1]} 79. Kf2 {[%clk 0:00:14.7]} 79... Kf5
{[%clk 0:00:09.7]} 80. Kg3 {[%clk 0:00:14.6]} 80... Kg5 {[%clk 0:00:10.2]} 81.
Kf3 {[%clk 0:00:15.3]} 81... Kg6 {[%clk 0:00:10.7]} 82. Kf4 {[%clk 0:00:15.8]}
82... Nf6 {[%clk 0:00:11.2]} 83. Ke5 {[%clk 0:00:15.4]} 83... Ng4+ {[%clk
0:00:10.6]} 84. Ke6 {[%clk 0:00:16.3]} 84... Kh7 {[%clk 0:00:10.3]} 85. Ke7
{[%clk 0:00:17.2]} 85... Ne3 {[%clk 0:00:10.4]} 86. Kf7 {[%clk 0:00:18]} 86...
Nf5 {[%clk 0:00:10.6]} 87. Kf6 {[%clk 0:00:18.9]} 87... Nd6 {[%clk 0:00:10.6]}
88. Ke7 {[%clk 0:00:19.3]} 88... Nf5+ {[%clk 0:00:10.6]} 89. Kf7 {[%clk
0:00:20.2]} 89... Nxh6+ {[%clk 0:00:11.5]} 1/2-1/2

[Event "Early-Titled-Tuesday-Blitz-November-28-2023"]
[Site "Chess.com"]
[Date "2023.11.28"]
[Round "3"]
[White "Alexchess1984"]
[Black "vugarrasulov"]
[Result "1/2-1/2"]
[WhiteElo "2709"]
[BlackElo "2917"]
[TimeControl "180+1"]
[EndTime "8:30:51 PST"]
[Termination "Game drawn - insufficient material"]

1. e4 {[%clk 0:02:58.4]} 1... e5 {[%clk 0:02:59.5]} 2. d4 {[%clk 0:02:54.6]}
2... exd4 {[%clk 0:02:59.3]} 3. Qxd4 {[%clk 0:02:55.5]} 3... Nc6 {[%clk
0:02:59.3]} 4. Qd3 {[%clk 0:02:55.4]} 4... Nf6 {[%clk 0:02:56.6]} 5. Nc3 {[%clk
0:02:55.5]} 5... Bb4 {[%clk 0:02:49.6]} 6. Bd2 {[%clk 0:02:54.5]} 6... O-O
{[%clk 0:02:44.9]} 7. O-O-O {[%clk 0:02:54.2]} 7... Re8 {[%clk 0:02:45]} 8. f3
{[%clk 0:02:31.7]} 8... d6 {[%clk 0:02:41.9]} 9. g4 {[%clk 0:02:26.9]} 9... Be6
{[%clk 0:02:41.2]} 10. h4 {[%clk 0:02:24.7]} 10... Ne5 {[%clk 0:02:24.3]} 11.
Qe3 {[%clk 0:02:23]} 11... Bc5 {[%clk 0:02:21.1]} 12. Qf4 {[%clk 0:02:18.1]}
12... c6 {[%clk 0:02:15.8]} 13. h5 {[%clk 0:02:16.4]} 13... Nfd7 {[%clk
0:02:00.3]} 14. Qg3 {[%clk 0:02:09]} 14... b5 {[%clk 0:01:54.3]} 15. f4 {[%clk
0:02:05.5]} 15... Bxg4 {[%clk 0:01:41.6]} 16. Re1 {[%clk 0:01:51.6]} 16... Qb6
{[%clk 0:01:30]} 17. fxe5 {[%clk 0:01:49.5]} 17... Nxe5 {[%clk 0:01:27.8]} 18.
Nh3 {[%clk 0:01:39.5]} 18... a5 {[%clk 0:01:20.6]} 19. Be2 {[%clk 0:01:37.7]}
19... Bxh3 {[%clk 0:01:13.9]} 20. Qxh3 {[%clk 0:01:37.9]} 20... a4 {[%clk
0:01:14.2]} 21. Nd1 {[%clk 0:01:12.5]} 21... b4 {[%clk 0:01:13.7]} 22. Be3
{[%clk 0:00:54.5]} 22... b3 {[%clk 0:01:08.6]} 23. a3 {[%clk 0:00:48.6]} 23...
bxc2 {[%clk 0:01:06]} 24. Kxc2 {[%clk 0:00:46.2]} 24... Qb3+ {[%clk 0:00:59.7]}
25. Kc1 {[%clk 0:00:46.1]} 25... Bxa3 {[%clk 0:00:44.5]} 26. Bd4 {[%clk
0:00:27.9]} 26... Bb4 {[%clk 0:00:43.9]} 27. Qxb3 {[%clk 0:00:23.5]} 27... axb3
{[%clk 0:00:44.8]} 28. Nc3 {[%clk 0:00:21.8]} 28... Nd7 {[%clk 0:00:39.3]} 29.
Bc4 {[%clk 0:00:17.5]} 29... c5 {[%clk 0:00:34.9]} 30. Be3 {[%clk 0:00:17.5]}
30... Rxe4 {[%clk 0:00:26.6]} 31. Bxb3 {[%clk 0:00:14.2]} 31... Ra1+ {[%clk
0:00:27.1]} 32. Kc2 {[%clk 0:00:14.3]} 32... Rxe1 {[%clk 0:00:21.9]} 33. Rxe1
{[%clk 0:00:15.2]} 33... c4 {[%clk 0:00:20.8]} 34. Ba2 {[%clk 0:00:14.9]} 34...
Bxc3 {[%clk 0:00:15.9]} 35. bxc3 {[%clk 0:00:15.8]} 35... h6 {[%clk 0:00:14.8]}
36. Kd2 {[%clk 0:00:15.6]} 36... Ne5 {[%clk 0:00:13.9]} 37. Re2 {[%clk
0:00:12.5]} 37... d5 {[%clk 0:00:13.7]} 38. Bb1 {[%clk 0:00:11]} 38... Nf3+
{[%clk 0:00:13.4]} 39. Kd1 {[%clk 0:00:10.9]} 39... Rh4 {[%clk 0:00:14.3]} 40.
Bf2 {[%clk 0:00:08.5]} 40... Rh1+ {[%clk 0:00:14.5]} 41. Kc2 {[%clk 0:00:08.9]}
41... Rh2 {[%clk 0:00:11.4]} 42. Kb2 {[%clk 0:00:08.4]} 42... g5 {[%clk
0:00:11.8]} 43. Bc2 {[%clk 0:00:05.8]} 43... g4 {[%clk 0:00:09]} 44. Bd1 {[%clk
0:00:06.4]} 44... Kg7 {[%clk 0:00:07.7]} 45. Bd4+ {[%clk 0:00:06.2]} 45... Kf8
{[%clk 0:00:08.1]} 46. Rxh2 {[%clk 0:00:05.8]} 46... Nxh2 {[%clk 0:00:09]} 47.
Be5 {[%clk 0:00:06.5]} 47... Nf3 {[%clk 0:00:09]} 48. Bxf3 {[%clk 0:00:07.1]}
48... gxf3 {[%clk 0:00:09.9]} 49. Bg3 {[%clk 0:00:07.7]} 49... Ke7 {[%clk
0:00:10.3]} 50. Kc2 {[%clk 0:00:08.4]} 50... Kf6 {[%clk 0:00:11]} 51. Kd2 {[%clk
0:00:09.1]} 51... Kg5 {[%clk 0:00:11.5]} 52. Ke3 {[%clk 0:00:09.8]} 52... Kxh5
{[%clk 0:00:07.9]} 53. Kxf3 {[%clk 0:00:09.8]} 53... Kg5 {[%clk 0:00:08]} 54.
Bf2 {[%clk 0:00:10.1]} 54... Kf5 {[%clk 0:00:07.8]} 55. Bd4 {[%clk 0:00:10.8]}
55... h5 {[%clk 0:00:08.1]} 56. Kg3 {[%clk 0:00:11.7]} 56... Kg5 {[%clk
0:00:04.1]} 57. Kh3 {[%clk 0:00:11.8]} 57... f5 {[%clk 0:00:04]} 58. Kg3 {[%clk
0:00:10.5]} 58... f4+ {[%clk 0:00:04.9]} 59. Kf3 {[%clk 0:00:10.7]} 59... Kf5
{[%clk 0:00:05.6]} 60. Bf2 {[%clk 0:00:10.7]} 60... Ke5 {[%clk 0:00:05.8]} 61.
Bd4+ {[%clk 0:00:09.9]} 61... Kf5 {[%clk 0:00:06.3]} 62. Bc5 {[%clk 0:00:09.8]}
62... h4 {[%clk 0:00:06.5]} 63. Kg2 {[%clk 0:00:09.8]} 63... Kg4 {[%clk
0:00:06]} 64. Bd4 {[%clk 0:00:10.4]} 64... h3+ {[%clk 0:00:04.8]} 65. Kh2 {[%clk
0:00:10.9]} 65... Kh4 {[%clk 0:00:03.6]} 66. Bf2+ {[%clk 0:00:10.9]} 66... Kg4
{[%clk 0:00:04.5]} 67. Be1 {[%clk 0:00:11.6]} 67... d4 {[%clk 0:00:03.8]} 68.
cxd4 {[%clk 0:00:11.6]} 68... f3 {[%clk 0:00:04.4]} 69. d5 {[%clk 0:00:10.5]}
69... c3 {[%clk 0:00:03.9]} 70. d6 {[%clk 0:00:10.1]} 70... c2 {[%clk
0:00:04.2]} 71. d7 {[%clk 0:00:09.4]} 71... c1=Q {[%clk 0:00:05.1]} 72. d8=Q
{[%clk 0:00:10]} 72... Qc2+ {[%clk 0:00:05.2]} 73. Bd2 {[%clk 0:00:06.1]} 73...
Qg6 {[%clk 0:00:04.7]} 74. Qd4+ {[%clk 0:00:05.4]} 74... Kh5 {[%clk 0:00:05.3]}
75. Qe5+ {[%clk 0:00:04.4]} 75... Kh4 {[%clk 0:00:05.7]} 76. Qf4+ {[%clk
0:00:04.6]} 76... Qg4 {[%clk 0:00:06.2]} 77. Qh6+ {[%clk 0:00:04.5]} 77... Qh5
{[%clk 0:00:06.9]} 78. Be1+ {[%clk 0:00:04.8]} 78... Kg4 {[%clk 0:00:07.4]} 79.
Qe6+ {[%clk 0:00:04.7]} 79... Qf5 {[%clk 0:00:07.6]} 80. Qxf5+ {[%clk
0:00:04.6]} 80... Kxf5 {[%clk 0:00:07.8]} 81. Kxh3 {[%clk 0:00:05.5]} 81... f2
{[%clk 0:00:08.5]} 82. Bxf2 {[%clk 0:00:05.9]} 1/2-1/2

[Event "Early-Titled-Tuesday-Blitz-November-28-2023"]
[Site "Chess.com"]
[Date "2023.11.28"]
[Round "3"]
[White "MatthewG-p4p"]
[Black "Franmu14"]
[Result "1/2-1/2"]
[WhiteElo "2941"]
[BlackElo "2727"]
[TimeControl "180+1"]
[EndTime "8:30:52 PST"]
[Termination "Game drawn by repetition"]

1. e4 {[%clk 0:03:00.9]} 1... e5 {[%clk 0:02:59.9]} 2. Nf3 {[%clk 0:03:00.3]}
2... Nc6 {[%clk 0:03:00.8]} 3. d4 {[%clk 0:02:58.1]} 3... exd4 {[%clk
0:03:01.7]} 4. Nxd4 {[%clk 0:02:58.6]} 4... d6 {[%clk 0:03:02]} 5. Nc3 {[%clk
0:02:56.5]} 5... Bd7 {[%clk 0:03:01.7]} 6. Bc4 {[%clk 0:02:54.3]} 6... g6 {[%clk
0:03:01.7]} 7. O-O {[%clk 0:02:15.4]} 7... Bg7 {[%clk 0:03:01.9]} 8. Be3 {[%clk
0:02:14.7]} 8... Nf6 {[%clk 0:03:01.4]} 9. f3 {[%clk 0:02:13.4]} 9... O-O {[%clk
0:03:01.3]} 10. a4 {[%clk 0:02:13.6]} 10... a6 {[%clk 0:03:01.4]} 11. Qd2 {[%clk
0:02:13.3]} 11... Re8 {[%clk 0:03:00]} 12. Rad1 {[%clk 0:02:12.1]} 12... Rb8
{[%clk 0:02:52.4]} 13. Bg5 {[%clk 0:02:10.5]} 13... Ne5 {[%clk 0:02:48.6]} 14.
Ba2 {[%clk 0:02:08.7]} 14... c5 {[%clk 0:02:19.6]} 15. Nde2 {[%clk 0:02:01.2]}
15... Be6 {[%clk 0:02:19.8]} 16. Qxd6 {[%clk 0:01:25.2]} 16... Qxd6 {[%clk
0:02:18.4]} 17. Rxd6 {[%clk 0:01:26.1]} 17... Bxa2 {[%clk 0:02:18.5]} 18. Nxa2
{[%clk 0:01:24.5]} 18... Nc4 {[%clk 0:01:56.8]} 19. Rxf6 {[%clk 0:00:58.8]}
19... h6 {[%clk 0:01:56.5]} 20. Bh4 {[%clk 0:00:59.5]} 20... g5 {[%clk
0:01:56.4]} 21. Rf5 {[%clk 0:00:57.3]} 21... gxh4 {[%clk 0:01:52.9]} 22. Rxc5
{[%clk 0:00:52.8]} 22... Nxb2 {[%clk 0:01:51.3]} 23. a5 {[%clk 0:00:50.9]} 23...
Rbc8 {[%clk 0:01:49.1]} 24. Rxc8 {[%clk 0:00:47.3]} 24... Rxc8 {[%clk 0:01:50]}
25. c3 {[%clk 0:00:47.1]} 25... Nc4 {[%clk 0:01:40.2]} 26. Rd1 {[%clk
0:00:47.2]} 26... Nxa5 {[%clk 0:01:34.1]} 27. Rd7 {[%clk 0:00:47.6]} 27... Rb8
{[%clk 0:00:58.7]} 28. Kf2 {[%clk 0:00:44.6]} 28... Nc4 {[%clk 0:00:58.2]} 29.
f4 {[%clk 0:00:43.2]} 29... b5 {[%clk 0:00:56.6]} 30. e5 {[%clk 0:00:43.4]}
30... a5 {[%clk 0:00:56.6]} 31. Nd4 {[%clk 0:00:36.1]} 31... b4 {[%clk
0:00:52.7]} 32. cxb4 {[%clk 0:00:36.8]} 32... axb4 {[%clk 0:00:53.6]} 33. Nb3
{[%clk 0:00:37.2]} 33... Bf8 {[%clk 0:00:50.8]} 34. Rd4 {[%clk 0:00:37]} 34...
Na5 {[%clk 0:00:38.9]} 35. Rd3 {[%clk 0:00:19.6]} 35... Nxb3 {[%clk 0:00:34.9]}
36. Rxb3 {[%clk 0:00:20.5]} 36... Ra8 {[%clk 0:00:35.3]} 37. Nc1 {[%clk
0:00:15.2]} 37... Rc8 {[%clk 0:00:35.9]} 38. Nd3 {[%clk 0:00:12.5]} 38... Rc2+
{[%clk 0:00:31.8]} 39. Kf3 {[%clk 0:00:11.7]} 39... h3 {[%clk 0:00:31.8]} 40.
gxh3 {[%clk 0:00:10.3]} 40... Rxh2 {[%clk 0:00:32.2]} 41. Kg3 {[%clk 0:00:10.3]}
41... Re2 {[%clk 0:00:17.1]} 42. Nxb4 {[%clk 0:00:10.6]} 42... Bxb4 {[%clk
0:00:17]} 43. Rxb4 {[%clk 0:00:11.5]} 43... Kg7 {[%clk 0:00:17.3]} 44. Kg4
{[%clk 0:00:11.2]} 44... Re3 {[%clk 0:00:15.4]} 45. Rb7 {[%clk 0:00:10.8]} 45...
h5+ {[%clk 0:00:14.6]} 46. Kxh5 {[%clk 0:00:03.8]} 46... Rxh3+ {[%clk
0:00:14.1]} 47. Kg5 {[%clk 0:00:04.5]} 47... Rg3+ {[%clk 0:00:14.5]} 48. Kf5
{[%clk 0:00:04.3]} 48... Re3 {[%clk 0:00:15.2]} 49. Kg4 {[%clk 0:00:04.7]} 49...
Re1 {[%clk 0:00:15.3]} 50. Re7 {[%clk 0:00:04.7]} 50... Kg6 {[%clk 0:00:15.2]}
51. Ra7 {[%clk 0:00:04.5]} 51... Re4 {[%clk 0:00:14.1]} 52. Ra6+ {[%clk
0:00:04.5]} 52... Kg7 {[%clk 0:00:14]} 53. Kg5 {[%clk 0:00:05.4]} 53... Re1
{[%clk 0:00:14.3]} 54. Ra7 {[%clk 0:00:05.9]} 54... Re2 {[%clk 0:00:14.3]} 55.
Ra5 {[%clk 0:00:04.7]} 55... Rg2+ {[%clk 0:00:14]} 56. Kf5 {[%clk 0:00:04.7]}
56... Re2 {[%clk 0:00:14.7]} 57. Kg4 {[%clk 0:00:05]} 57... Rg2+ {[%clk
0:00:15]} 58. Kh4 {[%clk 0:00:05.6]} 58... Re2 {[%clk 0:00:14.6]} 59. f5 {[%clk
0:00:05.7]} 59... Rg2 {[%clk 0:00:14.6]} 60. Ra7 {[%clk 0:00:04.9]} 60... Kg8
{[%clk 0:00:14.8]} 61. Kh5 {[%clk 0:00:04.8]} 61... Rg1 {[%clk 0:00:14.6]} 62.
Ra4 {[%clk 0:00:04.4]} 62... Kf8 {[%clk 0:00:14.5]} 63. Ra8+ {[%clk 0:00:03.6]}
63... Kg7 {[%clk 0:00:14.3]} 64. f6+ {[%clk 0:00:04]} 64... Kh7 {[%clk
0:00:14.7]} 65. Rf8 {[%clk 0:00:04.9]} 65... Rh1+ {[%clk 0:00:14.3]} 66. Kg5
{[%clk 0:00:05.7]} 66... Rg1+ {[%clk 0:00:14.8]} 67. Kf5 {[%clk 0:00:06.4]}
67... Rf1+ {[%clk 0:00:15.2]} 68. Ke4 {[%clk 0:00:07.1]} 68... Kg6 {[%clk
0:00:14.3]} 69. Rg8+ {[%clk 0:00:07.4]} 69... Kh5 {[%clk 0:00:14.5]} 70. Rg7
{[%clk 0:00:07.8]} 70... Re1+ {[%clk 0:00:14.9]} 71. Kd5 {[%clk 0:00:08.3]}
71... Rd1+ {[%clk 0:00:15.4]} 72. Kc5 {[%clk 0:00:08.9]} 72... Re1 {[%clk
0:00:15.6]} 73. Kd6 {[%clk 0:00:09.6]} 73... Rd1+ {[%clk 0:00:16.1]} 74. Ke7
{[%clk 0:00:10.2]} 74... Re1 {[%clk 0:00:16.7]} 75. Kxf7 {[%clk 0:00:10.7]}
75... Rxe5 {[%clk 0:00:17]} 76. Rg2 {[%clk 0:00:10.8]} 76... Kh6 {[%clk
0:00:16.4]} 77. Kf8 {[%clk 0:00:11]} 77... Ra5 {[%clk 0:00:15.3]} 78. f7 {[%clk
0:00:04.9]} 78... Ra8+ {[%clk 0:00:15]} 79. Ke7 {[%clk 0:00:05.4]} 79... Ra7+
{[%clk 0:00:15.7]} 80. Ke6 {[%clk 0:00:05.9]} 80... Ra6+ {[%clk 0:00:16]} 81.
Ke5 {[%clk 0:00:06.2]} 81... Ra5+ {[%clk 0:00:16.5]} 82. Kd6 {[%clk 0:00:06.1]}
82... Ra6+ {[%clk 0:00:16.9]} 83. Kd5 {[%clk 0:00:06]} 83... Ra5+ {[%clk
0:00:17.3]} 84. Ke6 {[%clk 0:00:05.9]} 84... Ra6+ {[%clk 0:00:17.8]} 85. Kf5
{[%clk 0:00:06.3]} 85... Ra5+ {[%clk 0:00:17.9]} 86. Kf6 {[%clk 0:00:07.2]}
86... Ra6+ {[%clk 0:00:18.3]} 87. Ke7 {[%clk 0:00:08]} 87... Ra7+ {[%clk
0:00:18.8]} 88. Ke8 {[%clk 0:00:08.7]} 88... Ra8+ {[%clk 0:00:19.1]} 89. Kd7
{[%clk 0:00:09.5]} 89... Ra7+ {[%clk 0:00:19.5]} 90. Ke6 {[%clk 0:00:10.2]}
90... Ra6+ {[%clk 0:00:19.8]} 1/2-1/2